bitfinex-derivatives/quotes_BTCF0:USTF0_20250926
["timestamp","ask_amount","ask_price","bid_price","bid_amount"]
[1758883088613,0.4896215,108900.0,108890.0,0.0249]
[1758883089911,0.4896215,108900.0,108890.0,0.11667]
[1758883090313,0.8896215,108900.0,108890.0,0.002]
[1758883090518,1.36318439,108900.0,108890.0,0.02313]
[1758883091021,0.8896215,108900.0,108890.0,0.02313]
[1758883091412,0.8896215,108900.0,108890.0,0.58846289]
[1758883091615,0.4896215,108900.0,108890.0,0.60128289]
[1758883091816,0.4763015,108900.0,108890.0,0.60128289]
[1758883093317,0.8896215,108900.0,108890.0,0.02313]
[1758883093725,0.8896215,108900.0,108890.0,0.1148993]
[1758883093917,0.4763015,108900.0,108890.0,0.1277193]
[1758883095020,0.4763015,108900.0,108890.0,0.60128219]
[1758883095414,0.4763015,108900.0,108890.0,0.1277193]
[1758883095617,0.4763015,108900.0,108890.0,0.60128219]
[1758883096117,0.4763015,108900.0,108890.0,0.1277193]
[1758883096312,0.4763015,108900.0,108890.0,0.60128219]
[1758883096712,0.4763015,108900.0,108890.0,0.50951289]
[1758883096918,0.4896215,108900.0,108890.0,0.02313]
[1758883097819,0.96318439,108900.0,108890.0,0.02313]
[1758883099623,0.4896215,108900.0,108890.0,0.1148997]
[1758883100123,0.4896215,108900.0,108890.0,0.1277197]
[1758883100524,0.4896215,108900.0,108890.0,0.1148997]
[1758883101023,0.4896215,108900.0,108890.0,0.02313]
[1758883101224,0.4896215,108900.0,108890.0,0.002]
[1758883101225,0.96318439,108900.0,108890.0,0.002]
[1758883101624,0.96318439,108900.0,108890.0,0.02313]
[1758883101825,0.4896215,108900.0,108890.0,0.02313]
[1758883102223,0.96318439,108900.0,108890.0,0.002]
[1758883102422,1.36318439,108900.0,108890.0,0.002]
[1758883104415,1.3857328,108900.0,108890.0,0.002]
[1758883105629,0.91216991,108900.0,108890.0,0.02313]
[1758883106612,0.91216991,108900.0,108890.0,0.002]
[1758883107422,1.3857328,108900.0,108890.0,0.02437]
[1758883107625,0.91216991,108900.0,108890.0,0.02437]
[1758883108418,1.37176991,108900.0,108890.0,0.58970279]
[1758883108624,1.3492215,108900.0,108890.0,0.60235279]
[1758883109231,1.3492215,108900.0,108890.0,0.1161399]
[1758883109931,0.4896215,108900.0,108890.0,0.02437]
[1758883110133,1.3491815,108900.0,108890.0,0.02437]
[1758883111038,1.37172714,108900.0,108890.0,0.02437]
[1758883111328,1.37172714,108900.0,108890.0,0.1161399]
[1758883114536,1.37172714,108900.0,108890.0,0.02437]
[1758883114927,1.37172714,108900.0,108890.0,0.1161398]
[1758883115332,1.37172714,108900.0,108890.0,0.58970269]
[1758883115532,1.3491815,108900.0,108890.0,0.58970269]
[1758883115734,1.3491815,108900.0,108890.0,0.60235269]
[1758883115934,1.37172856,108900.0,108890.0,0.51058289]
[1758883116121,1.37172856,108900.0,108890.0,0.49793289]
[1758883116324,1.37172856,108900.0,108890.0,0.02437]
[1758883116532,1.37172856,108900.0,108890.0,0.1161397]
[1758883117535,1.37172856,108900.0,108890.0,0.58970259]
[1758883117832,1.37172856,108900.0,108890.0,0.1161397]
[1758883119830,1.3358615,108900.0,108890.0,0.60235259]
[1758883120136,1.3358615,108900.0,108890.0,0.1287897]
[1758883120335,1.3490015,108900.0,108890.0,0.58970269]
[1758883120729,1.3490015,108900.0,108890.0,0.02437]
[1758883120930,1.82256439,108900.0,108890.0,0.02437]
[1758883121332,1.3490015,108900.0,108890.0,0.02437]
[1758883121937,1.3490015,108900.0,108890.0,0.1161398]
[1758883123435,1.3358615,108900.0,108890.0,0.60235269]
[1758883124239,1.3490015,108900.0,108890.0,0.60235269]
[1758883124640,1.3490015,108900.0,108890.0,0.51058289]
[1758883125140,1.3490015,108900.0,108890.0,0.03702]
[1758883125339,1.3490015,108900.0,108890.0,0.02437]
[1758883127132,1.3490015,108900.0,108890.0,0.002]
[1758883127538,1.82256439,108900.0,108890.0,0.02437]
[1758883128248,1.3490015,108900.0,108890.0,0.1161399]
[1758883129744,1.3490015,108900.0,108890.0,0.02437]
[1758883129944,1.37153673,108900.0,108890.0,0.02437]
[1758883132248,1.37153673,108900.0,108890.0,0.49793289]
[1758883132545,1.37153673,108900.0,108890.0,0.02437]
[1758883132946,1.37153673,108900.0,108890.0,0.1161399]
[1758883133150,1.37153673,108900.0,108890.0,0.60235279]
[1758883133443,1.37153673,108900.0,108890.0,0.51058289]
[1758883133635,1.37153673,108900.0,108890.0,0.02437]
[1758883135957,1.37153673,108900.0,108890.0,0.1161401]
[1758883136459,1.3358615,108900.0,108890.0,0.60370299]
[1758883137851,1.37122046,108900.0,108890.0,0.002]
[1758883138054,2.24478335,108900.0,108890.0,0.002]
[1758883138260,1.37062046,108900.0,108890.0,0.02458]
[1758883138445,1.77062046,108900.0,108890.0,0.002]
[1758883138653,2.24418335,108900.0,108890.0,0.002]
[1758883138958,1.77062046,108900.0,108890.0,0.002]
[1758883139259,0.51166046,108900.0,108890.0,0.02458]
[1758883139446,1.37058046,108900.0,108890.0,0.02458]
[1758883139650,1.37058046,108900.0,108890.0,0.1163501]
[1758883140252,1.37054046,108900.0,108890.0,0.58991299]
[1758883140458,1.3480015,108900.0,108890.0,0.58991299]
[1758883140650,1.37053759,108900.0,108890.0,0.02458]
[1758883140858,1.37053759,108900.0,108890.0,0.002]
[1758883141060,1.37053759,108900.0,108890.0,0.02458]
[1758883141660,1.37053876,108900.0,108890.0,0.02458]
[1758883142051,1.37053876,108900.0,108890.0,0.1163503]
[1758883142252,1.37053876,108900.0,108890.0,0.58991319]
[1758883143063,0.4891215,108900.0,108890.0,0.60391319]
[1758883144653,0.4891215,108900.0,108890.0,0.48550687]
[1758883145762,0.4891215,108900.0,108890.0,0.1303503]
[1758883145962,0.4891215,108900.0,108890.0,0.48550687]
[1758883149065,0.4763015,108900.0,108890.0,0.48550687]
[1758883149766,0.38454,108900.0,108890.0,0.48550687]
[1758883150061,0.38454,108900.0,108890.0,0.84066344]
[1758883150260,0.3618,108900.0,108890.0,2.09930344]
[1758883150460,0.001,108900.0,108890.0,2.25705291]
[1758883151662,0.39243999,108910.0,108900.0,0.1258817]
[1758883151959,0.39243999,108910.0,108900.0,0.83619484]
[1758883152353,0.02251,108910.0,108900.0,0.83619484]
[1758883153069,0.4750586,108920.0,108910.0,0.1258732]
[1758883153366,0.4750586,108920.0,108910.0,0.83618634]
[1758883154861,0.4760586,108920.0,108910.0,0.83618634]
[1758883155059,0.38431,108920.0,108910.0,0.83618634]
[1758883155265,0.001,108920.0,108910.0,2.09466634]
[1758883155457,0.007,108920.0,108910.0,2.09466634]
[1758883156071,0.001,108920.0,108910.0,2.09466634]
[1758883156270,0.4556215,108930.0,108920.0,0.1258648]
[1758883156471,0.0948215,108930.0,108920.0,0.83617794]
[1758883156861,0.4556215,108930.0,108920.0,0.83617794]
[1758883157068,0.0948215,108930.0,108920.0,0.83617794]
[1758883157967,0.4556215,108930.0,108920.0,0.83617794]
[1758883158167,0.5607079,108930.0,108920.0,0.82338794]
[1758883158371,0.5607079,108930.0,108920.0,0.82938794]
[1758883159475,0.5607079,108930.0,108920.0,0.82338794]
[1758883160072,0.56972084,108930.0,108920.0,0.82338794]
[1758883160472,0.56972084,108930.0,108920.0,0.46823137]
[1758883160973,0.57072084,108930.0,108920.0,0.82338794]
[1758883161774,0.47898444,108930.0,108920.0,0.82338794]
[1758883162469,0.57072084,108930.0,108920.0,0.82338794]
[1758883165775,0.57072084,108930.0,108920.0,0.1130748]
[1758883165975,0.57072084,108930.0,108920.0,0.82338794]
[1758883167581,0.56972084,108930.0,108920.0,0.82338794]
[1758883168174,0.56972084,108930.0,108920.0,0.82938794]
[1758883168979,0.56972084,108930.0,108920.0,0.1190748]
[1758883169180,0.92487741,108930.0,108920.0,0.38248657]
[1758883169482,0.92487741,108930.0,108920.0,0.46823137]
[1758883170081,0.56972084,108930.0,108920.0,0.46823137]
[1758883170283,0.56972084,108930.0,108920.0,0.82338794]
[1758883170885,0.57072084,108930.0,108920.0,0.82338794]
[1758883173385,0.56972084,108930.0,108920.0,0.82338794]
[1758883174687,0.57072084,108930.0,108920.0,0.82338794]
[1758883176890,0.47898444,108930.0,108920.0,0.82338794]
[1758883177086,0.46563444,108930.0,108920.0,0.83706794]
[1758883177586,0.10483444,108930.0,108920.0,0.83706794]
[1758883180288,0.55737084,108930.0,108920.0,0.83706794]
[1758883181195,0.19657084,108930.0,108920.0,0.83706794]
[1758883182184,0.0958215,108930.0,108920.0,0.83706794]
[1758883182396,0.0733115,108930.0,108920.0,0.83706794]
[1758883182791,0.0956115,108930.0,108920.0,0.83706794]
[1758883183292,0.0946115,108930.0,108920.0,0.83706794]
[1758883184691,1.35466865,108940.0,108930.0,0.01368]
[1758883184892,1.35466865,108940.0,108930.0,0.39204657]
[1758883185195,0.3831,108940.0,108930.0,0.83893954]
[1758883185393,0.3831,108940.0,108930.0,1.70566633]
[1758883185591,0.3831,108940.0,108930.0,1.69633954]
[1758883185792,0.3608,108940.0,108930.0,2.09633954]
[1758883186094,0.3618,108940.0,108930.0,2.09633954]
[1758883186699,0.001,108940.0,108930.0,2.1881374]
[1758883189596,0.0927282,108940.0,108930.0,2.1881374]
[1758883190302,0.001,108940.0,108930.0,2.1881374]
[1758883199313,0.001,108940.0,108930.0,2.1941374]
[1758883199507,0.0927285,108940.0,108930.0,1.3367374]
[1758883199711,0.4880485,108940.0,108930.0,0.9913464]
[1758883199910,0.4880485,108940.0,108930.0,1.34650297]
[1758883200411,0.39632,108940.0,108930.0,1.70165954]
[1758883200618,0.38276,108940.0,108930.0,1.70165954]
[1758883204413,0.4744886,108940.0,108930.0,1.70165954]
[1758883206513,0.4744886,108940.0,108930.0,1.46448269]
[1758883210317,0.4744886,108940.0,108930.0,1.53040058]
[1758883211815,0.4875686,108940.0,108930.0,1.53000058]
[1758883213722,0.4744886,108940.0,108930.0,1.53000058]
[1758883216736,0.02196,108940.0,108930.0,1.53000058]
[1758883217036,0.54917971,108950.0,108930.0,1.53000058]
[1758883217336,0.55738971,108950.0,108940.0,0.59952479]
[1758883218927,0.55838971,108950.0,108940.0,1.98952479]
[1758883219131,0.19758971,108950.0,108940.0,1.98952479]
[1758883219430,0.18855731,108950.0,108940.0,1.98952479]
[1758883219837,0.54935731,108950.0,108940.0,1.98952479]
[1758883220238,0.54935731,108950.0,108940.0,0.59952479]
[1758883222036,0.55837494,108950.0,108940.0,0.59952479]
[1758883222236,0.57145494,108950.0,108940.0,0.59952479]
[1758883222839,0.57145494,108950.0,108940.0,0.59952489]
[1758883223733,0.55837494,108950.0,108940.0,0.59952489]
[1758883223939,0.57145494,108950.0,108940.0,0.59952489]
[1758883224834,0.57045494,108950.0,108940.0,0.59952489]
[1758883225642,0.57145494,108950.0,108940.0,0.59952489]
[1758883227141,0.57145494,108950.0,108940.0,1.35075629]
[1758883228539,0.57145494,108950.0,108940.0,0.49511629]
[1758883228740,0.57145494,108950.0,108940.0,0.58684489]
[1758883230045,0.57145494,108950.0,108940.0,0.49511629]
[1758883231734,0.57145494,108950.0,108940.0,0.58684489]
[1758883232949,0.59398961,108950.0,108940.0,0.49511629]
[1758883233749,0.59398961,108950.0,108940.0,0.58684489]
[1758883233947,0.57145494,108950.0,108940.0,0.58684489]
[1758883234647,0.57145494,108950.0,108940.0,0.49511629]
[1758883235151,0.1043386,108940.0,108930.0,1.4817368]
[1758883235456,0.4651386,108940.0,108930.0,2.81011309]
[1758883237751,0.4651386,108940.0,108930.0,2.81611309]
[1758883238846,0.4651386,108940.0,108930.0,2.72437629]
[1758883239237,0.4651386,108940.0,108930.0,2.81611329]
[1758883240250,0.4651386,108940.0,108930.0,1.42611329]
[1758883240645,0.4651386,108940.0,108930.0,1.33437629]
[1758883240844,0.4651386,108940.0,108930.0,2.72437629]
[1758883241450,0.4651386,108940.0,108930.0,2.81611329]
[1758883242857,0.4661386,108940.0,108930.0,2.81011329]
[1758883243450,0.4661386,108940.0,108930.0,2.82289329]
[1758883244653,0.4651386,108940.0,108930.0,2.82289329]
[1758883245158,0.4651386,108940.0,108930.0,2.82889329]
[1758883246455,0.37341,108940.0,108930.0,2.82889329]
[1758883246661,0.4525286,108940.0,108930.0,2.82889329]
[1758883247262,0.0917286,108940.0,108930.0,2.82889329]
[1758883248059,0.0917286,108940.0,108930.0,2.83779303]
[1758883249056,0.0917286,108940.0,108930.0,2.82889329]
[1758883250355,1.40393014,108950.0,108940.0,0.1149785]
[1758883250556,1.42686014,108950.0,108940.0,0.58811479]
[1758883250753,1.42686014,108950.0,108940.0,0.1149785]
[1758883250957,1.42686014,108950.0,108940.0,0.58811479]
[1758883251555,1.42786014,108950.0,108940.0,0.58811479]
[1758883252665,1.42786014,108950.0,108940.0,0.49638629]
[1758883255168,1.42786014,108950.0,108940.0,0.58811479]
[1758883257568,1.45039475,108950.0,108940.0,0.49638629]
[1758883258569,1.47182368,108950.0,108940.0,0.49638629]
[1758883259072,1.45039475,108950.0,108940.0,0.02325]
[1758883259566,0.1049285,108940.0,108930.0,1.95487039]
[1758883259767,0.4657285,108940.0,108930.0,2.80911039]
[1758883260163,0.4657285,108940.0,108930.0,2.3359741]
[1758883260363,0.4657285,108940.0,108930.0,2.80911039]
[1758883261474,0.4657285,108940.0,108930.0,2.81511039]
[1758883264279,0.4657285,108940.0,108930.0,1.42511039]
[1758883265782,0.4885085,108940.0,108930.0,0.59318039]
[1758883265982,0.4885085,108940.0,108930.0,1.44726039]
[1758883267186,0.4885085,108940.0,108930.0,1.35536629]
[1758883267380,0.0917369,108930.0,108920.0,0.56200418]
[1758883267578,0.4875669,108930.0,108920.0,0.87687]
[1758883267778,0.4875669,108930.0,108920.0,1.35000629]
[1758883267978,0.4875669,108930.0,108920.0,0.02295]
[1758883267979,0.96070319,108930.0,108920.0,0.02295]
[1758883268176,2.21462319,108930.0,108910.0,0.47313629]
[1758883268483,2.21462319,108930.0,108910.0,0.49608629]
[1758883268484,0.4875754,108920.0,108910.0,0.49608629]
[1758883268673,0.4815754,108920.0,108910.0,1.23189325]
[1758883270687,0.4815754,108920.0,108910.0,1.24089325]
[1758883270888,0.4815754,108920.0,108910.0,0.88583]
[1758883271089,0.4815754,108920.0,108910.0,1.24089325]
[1758883271394,0.4815754,108920.0,108910.0,1.23889325]
[1758883271696,0.4815754,108920.0,108910.0,1.33264705]
[1758883271994,0.4815754,108920.0,108910.0,0.47876705]
[1758883273496,0.4815754,108920.0,108910.0,0.49145705]
[1758883273695,0.4815754,108920.0,108910.0,0.1363938]
[1758883273894,0.4815754,108920.0,108910.0,0.49145705]
[1758883275394,0.4679454,108920.0,108910.0,0.8465203]
[1758883277900,0.3608,108920.0,108910.0,1.2465203]
[1758883278493,1.3412527,108930.0,108920.0,0.1273854]
[1758883278792,1.3412527,108930.0,108920.0,0.8375119]
[1758883279395,0.4875727,108930.0,108920.0,1.6911519]
[1758883280393,0.4875727,108930.0,108920.0,1.6921519]
[1758883289708,0.4875727,108930.0,108920.0,0.9820254]
[1758883289902,0.4875727,108930.0,108920.0,1.6921519]
[1758883290106,0.4739427,108930.0,108920.0,1.71108462]
[1758883290404,0.4739427,108930.0,108920.0,2.11108462]
[1758883290711,0.4525427,108930.0,108920.0,2.11108462]
[1758883291905,0.4654327,108930.0,108920.0,1.71108462]
[1758883292110,0.4654327,108930.0,108920.0,1.69839462]
[1758883292312,0.4887227,108930.0,108920.0,1.60612922]
[1758883292512,0.4887227,108930.0,108920.0,1.69787462]
[1758883296304,0.4887227,108930.0,108920.0,0.02395]
[1758883296512,0.84378595,108930.0,108920.0,1.32379865]
[1758883296813,0.4887227,108930.0,108920.0,1.6788619]
[1758883298999,0.4887227,108930.0,108920.0,0.7340765]
[1758883299203,0.84378595,108930.0,108920.0,1.23185325]
[1758883300211,0.4887227,108930.0,108920.0,1.23185325]
[1758883301010,0.84378595,108930.0,108920.0,1.23185325]
[1758883301310,0.84378595,108930.0,108920.0,0.37901325]
[1758883304717,1.26629647,108930.0,108920.0,0.001]
[1758883309219,1.26629647,108930.0,108920.0,0.02349]
[1758883310618,0.91123322,108930.0,108920.0,0.02349]
[1758883310820,1.26629647,108930.0,108920.0,0.02349]
[1758883311212,1.41869647,108930.0,108920.0,0.02349]
[1758883311412,1.26629647,108930.0,108920.0,0.02349]
[1758883312428,1.26629647,108930.0,108920.0,0.001]
[1758883314021,0.91123322,108930.0,108920.0,0.001]
[1758883314222,1.26629647,108930.0,108920.0,0.001]
[1758883320826,0.0917456,108920.0,108910.0,0.02148]
[1758883321129,0.128234,108910.0,108900.0,0.37654325]
[1758883321427,0.84409725,108910.0,108900.0,0.37654325]
[1758883321833,0.489034,108910.0,108900.0,0.37654325]
[1758883322033,0.83709725,108910.0,108900.0,0.37654325]
[1758883322527,0.83509725,108910.0,108900.0,0.37654325]
[1758883322934,0.83509725,108910.0,108900.0,0.38954325]
[1758883324433,0.84411595,108910.0,108900.0,0.38954325]
[1758883324832,0.84411595,108910.0,108900.0,0.39254325]
[1758883325435,0.91670496,108910.0,108900.0,0.39254325]
[1758883325736,0.91670496,108910.0,108900.0,0.03748]
[1758883325926,0.91670496,108910.0,108900.0,0.39254325]
[1758883326126,0.56164171,108910.0,108900.0,0.39254325]
[1758883326330,0.56164171,108910.0,108900.0,0.7476065]
[1758883328534,0.56164171,108910.0,108900.0,0.51094337]
[1758883329230,0.56164171,108910.0,108900.0,0.03748]
[1758883329435,1.03510508,108910.0,108900.0,0.016]
[1758883329734,1.45728592,108910.0,108900.0,0.016]
[1758883331639,1.46928592,108910.0,108900.0,0.003]
[1758883331836,0.1050808,108890.0,108880.0,1.96816187]
[1758883332039,1.3176008,108890.0,108880.0,1.96816187]
[1758883332429,1.3176008,108890.0,108880.0,1.95524187]
[1758883332633,1.3176008,108890.0,108880.0,1.86346337]
[1758883334046,1.3176008,108890.0,108880.0,1.86546337]
[1758883334346,1.3176008,108890.0,108880.0,1.95724237]
[1758883334645,1.3176008,108890.0,108880.0,1.97101237]
[1758883334847,1.3042908,108890.0,108880.0,1.97101237]
[1758883338356,1.3041308,108890.0,108880.0,1.97101237]
[1758883339150,0.4525708,108890.0,108880.0,1.97101237]
[1758883339351,1.3040908,108890.0,108880.0,1.97101237]
[1758883339749,0.4525708,108890.0,108880.0,1.97101237]
[1758883340050,1.3040508,108890.0,108880.0,1.97101237]
[1758883341146,1.3040508,108890.0,108880.0,1.497549]
[1758883341349,1.3040508,108890.0,108880.0,1.97101237]
[1758883342448,0.4525708,108890.0,108880.0,1.97101237]
[1758883342649,1.3039708,108890.0,108880.0,1.97101237]
[1758883343058,0.4525708,108890.0,108880.0,1.97101237]
[1758883343258,1.3039308,108890.0,108880.0,1.97101237]
[1758883343757,0.3608,108890.0,108880.0,3.69583574]
[1758883343959,1.12991,108900.0,108890.0,0.1276571]
[1758883344149,1.2216786,108900.0,108890.0,0.50935337]
[1758883344658,1.2216786,108900.0,108890.0,0.60112387]
[1758883345660,0.119992,108900.0,108890.0,0.60112387]
[1758883346162,0.098762,108900.0,108890.0,0.60112387]
[1758883346660,0.098762,108900.0,108890.0,1.00112387]
[1758883350063,0.007,108900.0,108890.0,1.00112387]
[1758883350665,0.098762,108900.0,108890.0,1.00112387]
[1758883353565,0.007,108900.0,108890.0,1.00112387]
[1758883354972,0.0987622,108900.0,108890.0,0.96523387]
[1758883356465,0.007,108900.0,108890.0,0.96523387]
[1758883357470,0.007,108900.0,108890.0,0.97459551]
[1758883358271,0.0987622,108900.0,108890.0,0.97459551]
[1758883359369,0.007,108900.0,108890.0,0.97459551]
[1758883359573,0.007,108900.0,108890.0,0.57459551]
[1758883360169,0.0987621,108900.0,108890.0,0.57459551]
[1758883360561,0.007,108900.0,108890.0,0.57459551]
[1758883361670,0.0987621,108900.0,108890.0,0.56523387]
[1758883362064,0.0987621,108900.0,108890.0,0.57416849]
[1758883362370,0.007,108900.0,108890.0,0.57416849]
[1758883362779,0.0987621,108900.0,108890.0,0.56523387]
[1758883363873,0.4595621,108900.0,108890.0,0.56523387]
[1758883364170,0.4595621,108900.0,108890.0,1.41575387]
[1758883365067,0.0917706,108890.0,108880.0,2.87167546]
[1758883365267,0.4525706,108890.0,108880.0,2.80575757]
[1758883365673,0.4525706,108890.0,108880.0,2.71398337]
[1758883365872,0.4525706,108890.0,108880.0,2.80576227]
[1758883366073,0.4525706,108890.0,108880.0,2.71398337]
[1758883366372,0.4525706,108890.0,108880.0,2.71498337]
[1758883367076,0.4535706,108890.0,108880.0,2.80676247]
[1758883367277,0.4535706,108890.0,108880.0,2.24152]
[1758883367468,0.4535706,108890.0,108880.0,2.71498337]
[1758883368076,0.4525706,108890.0,108880.0,2.71498337]
[1758883368274,0.4655706,108890.0,108880.0,2.71498337]
[1758883368474,0.4655706,108890.0,108880.0,2.80676237]
[1758883369073,0.4675706,108890.0,108880.0,2.80576237]
[1758883376581,0.4675706,108890.0,108880.0,2.71398337]
[1758883377183,0.4675706,108890.0,108880.0,2.71362337]
[1758883383175,0.4675706,108890.0,108880.0,2.71334337]
[1758883383977,0.091779,108880.0,108870.0,0.49199373]
[1758883384282,0.452579,108880.0,108870.0,1.32334337]
[1758883384485,0.452579,108880.0,108870.0,2.71334337]
[1758883384685,0.452579,108880.0,108870.0,2.80513077]
[1758883385379,0.459579,108880.0,108870.0,2.80513077]
[1758883387388,0.459579,108880.0,108870.0,2.3316674]
[1758883387684,0.46155349,108880.0,108870.0,2.80513077]
[1758883387884,0.46855349,108880.0,108870.0,2.80513077]
[1758883388288,0.46155349,108880.0,108870.0,2.80513077]
[1758883388486,0.46855349,108880.0,108870.0,2.80513077]
[1758883388790,0.459579,108880.0,108870.0,2.68679303]
[1758883391392,0.465579,108880.0,108870.0,2.68679303]
[1758883392791,0.467579,108880.0,108870.0,2.68679303]
[1758883393184,0.467579,108880.0,108870.0,2.69970303]
[1758883393790,0.465579,108880.0,108870.0,2.69970303]
[1758883393992,0.459579,108880.0,108870.0,2.69970303]
[1758883394179,0.459579,108880.0,108870.0,2.76562092]
[1758883394492,0.452579,108880.0,108870.0,2.76562092]
[1758883394792,0.465579,108880.0,108870.0,2.76562092]
[1758883395294,0.459579,108880.0,108870.0,2.76562092]
[1758883395493,0.461579,108880.0,108870.0,2.76562092]
[1758883396094,0.459579,108880.0,108870.0,2.76562092]
[1758883397489,0.459579,108880.0,108870.0,2.69970303]
[1758883398092,0.459579,108880.0,108870.0,3.05494866]
[1758883398093,0.3678,108880.0,108870.0,3.05494866]
[1758883398493,0.4595788,108880.0,108870.0,3.05494866]
[1758883398997,0.4595788,108880.0,108870.0,3.12086655]
[1758883399493,0.3678,108880.0,108870.0,3.12086655]
[1758883403096,0.3678,108880.0,108870.0,3.973515]
[1758883403097,0.007,108880.0,108870.0,3.973515]
[1758883404791,1.3018879,108900.0,108890.0,0.1046805]
[1758883404992,1.31116426,108900.0,108890.0,0.45992613]
[1758883405696,1.31116426,108900.0,108890.0,0.36815563]
[1758883405891,1.32416426,108900.0,108890.0,0.36815563]
[1758883406596,1.32616426,108900.0,108890.0,0.45992633]
[1758883407096,1.32616426,108900.0,108890.0,0.36815563]
[1758883407300,1.32616426,108900.0,108880.0,0.45992813]
[1758883407301,1.78714099,108900.0,108880.0,0.45992813]
[1758883407487,0.3608,108890.0,108880.0,1.30916813]
[1758883408204,0.4525705,108890.0,108880.0,1.21739563]
[1758883408398,0.4525705,108890.0,108880.0,0.1046891]
[1758883408598,0.4525705,108890.0,108880.0,0.9538491]
[1758883408900,0.4525705,108890.0,108880.0,1.66434036]
[1758883409100,0.4595705,108890.0,108880.0,1.66434036]
[1758883410704,0.4595705,108890.0,108880.0,1.66422036]
[1758883411301,0.4675705,108890.0,108880.0,1.66422036]
[1758883411700,0.4675705,108890.0,108880.0,0.9537291]
[1758883411901,0.4675705,108890.0,108880.0,1.66422036]
[1758883412498,0.4675705,108890.0,108880.0,0.01291]
[1758883412694,1.23389613,108890.0,108880.0,1.21719563]
[1758883412898,1.22789613,108890.0,108880.0,1.21719563]
[1758883413097,1.22789613,108890.0,108880.0,1.57244126]
[1758883413298,0.8726505,108890.0,108880.0,1.57244126]
[1758883414000,0.8595705,108890.0,108880.0,1.57244126]
[1758883414404,0.8655705,108890.0,108880.0,1.57244126]
[1758883415006,0.8675705,108890.0,108880.0,1.66422016]
[1758883415702,0.4675705,108890.0,108880.0,1.66422016]
[1758883417000,0.1067705,108890.0,108880.0,1.66422016]
[1758883418003,0.4655705,108890.0,108880.0,1.66422016]
[1758883418210,0.4655705,108890.0,108880.0,0.9537289]
[1758883418506,0.4655705,108890.0,108880.0,1.66422016]
[1758883418709,0.4595705,108890.0,108880.0,1.66422016]
[1758883419309,0.4525705,108890.0,108880.0,1.66422016]
[1758883419504,0.4595705,108890.0,108880.0,1.66422016]
[1758883420010,0.4655705,108890.0,108880.0,1.66422016]
[1758883421310,0.4655705,108890.0,108880.0,1.57244126]
[1758883421713,0.4595705,108890.0,108880.0,1.57244126]
[1758883421917,0.4615705,108890.0,108880.0,1.66422016]
[1758883422311,0.4545705,108890.0,108880.0,1.66422016]
[1758883422506,0.4675705,108890.0,108880.0,1.66422016]
[1758883427315,0.4675705,108890.0,108880.0,1.73013805]
[1758883427806,0.4675705,108890.0,108880.0,1.66422016]
[1758883428506,0.4655705,108890.0,108880.0,1.66422016]
[1758883428817,0.4525705,108890.0,108880.0,1.66422016]
[1758883429005,0.4595705,108890.0,108880.0,1.66422016]
[1758883429512,0.4655705,108890.0,108880.0,1.66422016]
[1758883430414,0.4675705,108890.0,108880.0,1.66422016]
[1758883431207,0.4655705,108890.0,108880.0,1.66422016]
[1758883431716,0.4525705,108890.0,108880.0,1.66422016]
[1758883431910,0.4595705,108890.0,108880.0,1.66422016]
[1758883432112,0.4615705,108890.0,108880.0,1.66422016]
[1758883432913,0.4615705,108890.0,108880.0,1.73013805]
[1758883433212,0.4615705,108890.0,108880.0,1.66422016]
[1758883433412,0.4615705,108890.0,108880.0,1.73013805]
[1758883433814,0.4615705,108890.0,108880.0,1.66422016]
[1758883434208,0.4595705,108890.0,108880.0,1.66422016]
[1758883434410,0.4595705,108890.0,108880.0,1.73013805]
[1758883434714,0.4595705,108890.0,108880.0,1.66422016]
[1758883435214,0.4595705,108890.0,108880.0,1.73013805]
[1758883437111,0.4595705,108890.0,108880.0,1.66422016]
[1758883437409,0.4595705,108890.0,108880.0,1.73013805]
[1758883444214,0.3678,108890.0,108880.0,2.48538368]
[1758883444411,0.007,108890.0,108880.0,2.57722369]
[1758883445015,0.007,108890.0,108880.0,2.58618969]
[1758883445608,0.3608,108900.0,108880.0,3.05772834]
[1758883445920,0.53409779,108910.0,108900.0,0.1273321]
[1758883445921,1.38209779,108910.0,108900.0,0.1273321]
[1758883446214,1.40419779,108910.0,108900.0,0.83782336]
[1758883446909,0.55619779,108910.0,108900.0,0.83782336]
[1758883447311,0.55619779,108910.0,108900.0,0.74606126]
[1758883447610,0.55819779,108910.0,108900.0,0.74606126]
[1758883447815,0.55819779,108910.0,108900.0,0.03557]
[1758883448117,0.92742342,108910.0,108900.0,0.37820563]
[1758883448326,0.93442342,108910.0,108900.0,0.37820563]
[1758883449418,0.57917779,108910.0,108900.0,0.37820563]
[1758883449618,0.93442342,108910.0,108900.0,0.37820563]
[1758883450527,0.57917779,108910.0,108900.0,0.02296]
[1758883454128,0.57917779,108910.0,108880.0,0.49646183]
[1758883454129,0.1278505,108890.0,108880.0,0.49646183]
[1758883454331,0.1278505,108890.0,108880.0,0.02296]
[1758883454332,0.4886505,108890.0,108880.0,0.02296]
[1758883454630,0.4886505,108890.0,108880.0,0.58824073]
[1758883454931,0.4886505,108890.0,108880.0,0.49646183]
[1758883455232,0.4886505,108890.0,108880.0,0.58824073]
[1758883455730,0.4886505,108890.0,108880.0,0.59324073]
[1758883456226,0.4886505,108890.0,108880.0,0.60458073]
[1758883456431,0.4886505,108890.0,108880.0,0.60558073]
[1758883457426,0.4886505,108890.0,108880.0,0.60458073]
[1758883459128,0.4886505,108890.0,108880.0,0.59958073]
[1758883459335,0.4896505,108890.0,108880.0,0.59958073]
[1758883460827,0.4896505,108890.0,108880.0,0.50780183]
[1758883461334,0.4896505,108890.0,108880.0,0.59958053]
[1758883461534,0.4756705,108890.0,108880.0,0.59958053]
[1758883465738,0.4756705,108890.0,108880.0,0.50780183]
[1758883466244,0.4896505,108890.0,108880.0,0.49646183]
[1758883469345,0.4896505,108890.0,108880.0,0.58824053]
[1758883472047,0.4756705,108890.0,108880.0,0.59958053]
[1758883473141,0.4756705,108890.0,108880.0,0.50780183]
[1758883473448,0.4884505,108890.0,108880.0,0.59958053]
[1758883474835,0.4884505,108890.0,108880.0,0.1147387]
[1758883475039,0.4884505,108890.0,108880.0,0.58824053]
[1758883475244,0.4884505,108890.0,108880.0,1.43532053]
[1758883476042,0.4884505,108890.0,108880.0,1.34354183]
[1758883476438,0.4884505,108890.0,108880.0,1.43532053]
[1758883477545,0.4884505,108890.0,108880.0,0.58824053]
[1758883477749,0.4884505,108890.0,108880.0,1.43524053]
[1758883479045,0.4884505,108890.0,108880.0,1.43520053]
[1758883479242,0.4756705,108890.0,108880.0,1.44654053]
[1758883481242,0.4535705,108890.0,108880.0,1.44654053]
[1758883483256,0.47520204,108890.0,108880.0,1.44654053]
[1758883484048,0.4535705,108890.0,108880.0,1.44654053]
[1758883488253,0.4887405,108890.0,108880.0,0.02296]
[1758883488455,0.4887405,108890.0,108880.0,1.34318183]